bitfinex/quotes_ETHUSD_20250823
["timestamp","ask_amount","ask_price","bid_price","bid_amount"]
[1755916858163,14.13,4702.9,4701.8,0.02]
[1755916858373,14.132,4702.9,4701.8,0.02]
[1755916858575,16.25834757,4702.9,4701.8,0.02]
[1755916859166,16.91834757,4702.9,4701.8,0.02]
[1755916859336,3.66,4702.8,4701.8,0.02]
[1755916859533,5.7867998,4701.9,4701.8,0.02]
[1755916859833,4.635,4701.9,4701.8,0.02]
[1755916860069,9.14248945,4701.9,4701.8,0.02]
[1755916860283,9.019,4701.9,4701.8,0.02]
[1755916860428,6.1254,4701.9,4701.8,0.02]
[1755916861069,8.9121998,4701.9,4701.8,0.02]
[1755916861237,9.7854,4701.9,4701.8,0.02]
[1755916861435,12.2494998,4701.9,4701.8,0.02]
[1755916862935,12.7494998,4701.9,4701.8,0.02]
[1755916863739,12.7494998,4701.9,4700.8,0.02]
[1755916863740,2.78725222,4700.9,4700.8,0.02]
[1755916864079,16.92334167,4700.9,4700.8,0.02]
[1755916864240,16.90725222,4700.9,4700.8,0.02]
[1755916864439,16.90425222,4700.9,4700.8,0.02]
[1755916864756,16.90225222,4700.9,4700.8,0.02]
[1755916864961,17.34595222,4700.9,4700.8,0.02]
[1755916865269,16.90225222,4700.9,4700.8,0.02]
[1755916865473,16.90225222,4700.9,4698.8,0.02]
[1755916865474,0.5,4700.7,4698.8,0.02]
[1755916865658,2.78770484,4699.9,4698.8,0.02]
[1755916865984,11.80779429,4699.9,4698.8,0.02]
[1755916866140,11.79170484,4699.9,4698.8,0.02]
[1755916866637,4.635,4699.9,4698.8,0.02]
[1755916866858,4.635,4699.9,4699.8,0.21603797]
[1755916866859,1.635,4699.9,4699.8,0.21603797]
[1755916867157,6.002,4699.9,4699.8,0.68533797]
[1755916867590,6.002,4699.9,4699.8,0.21603797]
[1755916867900,6.002,4699.9,4699.8,0.68533797]
[1755916868072,1.635,4699.9,4699.8,0.68533797]
[1755916868257,6.003,4699.9,4699.8,0.68533797]
[1755916868666,6.003,4699.9,4699.8,0.21603797]
[1755916869569,1.635,4699.9,4699.8,0.68533797]
[1755916869771,5.993,4699.9,4699.8,0.68533797]
[1755916869977,5.518,4699.9,4699.8,0.68533797]
[1755916870672,5.518,4699.9,4699.8,0.02]
[1755916870983,5.518,4699.9,4699.8,0.2156613]
[1755916871294,5.518,4699.9,4699.8,0.68501224]
[1755916871471,5.6244,4699.9,4699.8,0.68501224]
[1755916872298,1.2664,4699.9,4699.8,0.21571224]
[1755916872476,5.51,4699.9,4699.8,0.21571224]
[1755916872673,5.51,4699.9,4699.8,0.68501224]
[1755916872884,1.16,4699.9,4699.8,0.68501224]
[1755916873194,5.508,4699.9,4699.8,0.21571224]
[1755916873698,8.9517,4699.9,4699.8,0.21571224]
[1755916873899,11.73840484,4699.9,4699.8,0.02]
[1755916874564,8.507,4699.9,4699.8,0.02]
[1755916874795,10.63470484,4699.9,4699.8,0.02]
[1755916874981,8.506,4699.9,4699.8,0.21608513]
[1755916875872,5.506,4699.9,4699.8,0.21608513]
[1755916876762,5.506,4699.9,4699.8,0.21640147]
[1755916877401,5.503,4699.9,4699.8,0.21640147]
[1755916877580,0.4437,4701.3,4699.9,0.66]
[1755916877581,1.636,4701.3,4699.9,0.66]
[1755916877912,4.36508945,4701.2,4700.0,0.66570147]
[1755916878082,4.36508945,4701.2,4700.1,0.66570147]
[1755916878266,7.68403461,4703.0,4699.9,0.66]
[1755916878267,1.636,4702.3,4700.3,0.66]
[1755916878607,2.14694129,4703.8,4700.5,0.66]
[1755916878608,1.636,4702.9,4700.5,0.66]
[1755916878764,1.636,4702.9,4700.7,3.66]
[1755916878972,1.636,4702.9,4700.9,0.66]
[1755916878973,5.982,4702.9,4700.9,0.66]
[1755916879210,5.982,4702.9,4701.1,0.66]
[1755916879390,5.982,4702.9,4701.2,0.19640147]
[1755916879589,5.982,4702.9,4699.9,3.0]
[1755916879590,5.982,4702.9,4701.3,0.66940147]
[1755916879795,5.982,4702.9,4701.4,0.19710284]
[1755916880004,2.126475,4702.7,4701.5,0.19710284]
[1755916880299,5.982,4702.9,4701.6,0.19737618]
[1755916880300,3.02,4702.8,4701.6,0.19737618]
[1755916880508,2.1264803,4702.7,4701.7,0.19737618]
[1755916880673,2.12650546,4702.6,4701.8,0.19737618]
[1755916880865,3.02,4702.8,4701.9,0.19737618]
[1755916881069,3.02,4702.8,4701.3,0.473]
[1755916881070,3.02,4702.8,4702.0,0.19737618]
[1755916881282,3.02,4702.8,4701.3,0.473]
[1755916881283,4.343,4702.7,4702.1,0.19737618]
[1755916881468,4.343,4702.7,4702.2,0.19737618]
[1755916881699,4.343,4702.7,4702.3,0.19737618]
[1755916881934,4.343,4702.7,4701.3,0.473]
[1755916881935,4.343,4702.7,4702.4,0.19737618]
[1755916882138,0.02,4702.8,4702.5,0.67037618]
[1755916882336,4.337,4702.7,4702.6,0.67037618]
[1755916883529,4.337,4702.7,4702.6,0.473]
[1755916883731,4.337,4702.7,4702.6,0.19782307]
[1755916884011,0.02,4702.8,4702.6,0.19782307]
[1755916884220,0.02,4702.8,4702.7,0.19782307]
[1755916884444,4.349,4702.8,4702.7,0.19782307]
[1755916886346,4.8201,4702.8,4702.7,0.19782307]
[1755916886546,6.94649278,4702.8,4702.7,0.19782307]
[1755916886784,9.94649278,4702.8,4702.7,0.19782307]
[1755916887111,9.94649278,4702.8,4699.7,0.473]
[1755916887112,2.12675594,4702.0,4699.7,0.473]
[1755916887338,11.065,4701.9,4699.9,0.1979319]
[1755916887560,2.12689334,4701.7,4700.0,0.1979319]
[1755916887851,5.112,4701.9,4700.1,0.6709319]
[1755916888063,0.11128606,4702.2,4700.2,0.69220759]
[1755916888064,1.635,4701.8,4700.2,0.69220759]
[1755916888257,4.316,4701.7,4700.3,1.3309319]
[1755916888558,4.316,4701.7,4700.5,0.66]
[1755916888715,1.635,4701.8,4700.7,0.66]
[1755916888917,4.316,4701.9,4700.9,0.66]
[1755916889253,0.02,4702.8,4701.1,0.66]
[1755916889463,0.02,4702.8,4701.3,0.66]
[1755916889625,0.02,4702.8,4700.8,1.635]
[1755916889626,0.02,4702.8,4701.5,0.66]
[1755916889830,0.02,4702.8,4701.6,0.19771263]
[1755916890053,0.02,4702.8,4701.7,1.33071263]
[1755916890357,0.02,4702.8,4701.8,0.19771263]
[1755916890566,0.02,4702.8,4701.9,0.19771263]
[1755916890750,0.02,4702.8,4701.7,1.133]
[1755916890751,0.02,4702.8,4702.0,0.67071263]
[1755916890949,0.02,4702.8,4702.2,0.66]
[1755916891127,0.02,4702.8,4702.4,0.66]
[1755916891325,0.02,4702.8,4702.6,0.66]
[1755916891530,0.02,4702.8,4702.7,0.87897701]
[1755916892169,4.308,4703.3,4702.8,0.66]
[1755916892339,4.328,4703.8,4703.0,0.66]
[1755916892647,4.328,4703.8,4703.1,0.8789752]
[1755916892985,4.328,4703.8,4703.1,0.85771263]
[1755916893278,4.328,4703.8,4703.1,1.33071263]
[1755916893781,0.021,4703.8,4703.1,1.33071263]
[1755916894283,0.021,4703.8,4703.1,1.43711263]
[1755916894815,0.021,4703.8,4703.1,1.4583752]
[1755916895095,0.021,4703.8,4703.1,1.43644871]
[1755916895306,0.021,4703.8,4703.1,1.45771128]
[1755916895486,0.021,4703.8,4703.1,1.43644871]
[1755916896400,0.021,4703.8,4703.1,1.45771128]
[1755916896713,0.021,4703.8,4703.1,1.43644871]
[1755916896912,0.021,4703.8,4703.2,0.66]
[1755916897107,0.021,4703.8,4703.4,0.66]
[1755916897405,0.02,4706.8,4703.6,3.66]
[1755916897706,0.02,4706.8,4703.9,0.66]
[1755916897914,0.1064,4706.5,4704.1,3.66]
[1755916898210,0.1064,4706.5,4704.3,0.66]
[1755916898413,0.1064,4706.5,4704.5,3.66]
[1755916898566,0.1064,4706.5,4705.9,0.1064]
[1755916898767,0.1064,4706.5,4706.0,0.19669469]
[1755916899099,0.1064,4706.5,4706.1,0.19669469]
[1755916899300,0.4711,4706.4,4703.6,3.0]
[1755916899515,0.1064,4705.4,4704.7,0.1064]
[1755916899967,0.1064,4704.9,4704.2,0.1064]
[1755916900648,0.1064,4705.3,4704.6,0.1064]
[1755916900772,0.1064,4705.3,4704.7,0.02125534]
[1755916900973,1.635,4706.4,4705.3,0.66]
[1755916901168,1.635,4706.4,4705.6,0.66]
[1755916901411,0.02,4706.8,4706.3,0.1064]
[1755916901996,0.02,4706.8,4705.7,1.133]
[1755916902218,0.02,4706.8,4705.8,0.02125037]
[1755916902219,0.001,4706.3,4705.8,0.02125037]
[1755916902698,0.001,4706.3,4705.8,0.473]
[1755916902892,0.001,4706.3,4705.8,0.49425037]
[1755916903199,0.001,4706.3,4705.8,0.473]
[1755916903409,0.001,4706.3,4705.9,0.02124992]
[1755916903603,0.001,4706.3,4705.7,0.66]
[1755916905294,6.3901,4706.2,4704.8,0.02]
[1755916905497,3.4711,4706.1,4704.8,0.02]
[1755916905801,2.12498915,4706.0,4704.8,0.02]
[1755916905996,2.59606599,4706.0,4704.8,0.02]
[1755916906194,0.66,4705.8,4704.8,0.02]
[1755916906397,0.66,4705.8,4703.8,0.02]
[1755916906609,0.66,4705.6,4703.8,0.02]
[1755916906825,2.1255415,4704.7,4703.8,0.02]
[1755916907034,5.918,4704.6,4703.8,0.02]
[1755916907228,4.634,4704.5,4703.8,0.02]
[1755916907427,5.1051,4704.5,4703.8,0.02]
[1755916907640,5.12571712,4704.3,4703.8,0.02]
[1755916907940,2.12589553,4703.9,4703.8,0.02]
[1755916908239,2.12612598,4703.4,4702.8,0.00935813]
[1755916908428,1.634,4703.3,4702.8,0.00935813]
[1755916908627,6.384,4703.3,4702.8,0.00935813]
[1755916908941,0.466,4703.2,4702.8,0.00935813]
[1755916909322,1.634,4703.3,4702.8,0.00935813]
[1755916910754,3.0,4702.8,4699.3,0.4745]
[1755916911048,5.574,4703.2,4700.5,0.4635]
[1755916911049,4.284,4702.7,4700.5,0.4635]
[1755916911202,3.0,4702.6,4700.5,0.4635]
[1755916911406,4.284,4702.7,4700.9,0.19726654]
[1755916911632,4.284,4702.7,4699.3,0.011]
[1755916911633,3.466,4702.6,4701.0,0.19726654]
[1755916911838,5.12652999,4702.5,4701.1,0.19726654]
[1755916912150,5.12652999,4702.5,4699.8,0.4955]
[1755916912151,1.634,4702.4,4701.2,0.19726654]
[1755916912303,1.634,4702.4,4701.3,0.19726654]
[1755916912508,1.634,4702.4,4701.4,0.19726654]
[1755916912809,1.634,4702.4,4700.3,0.1174]
[1755916912810,0.466,4702.3,4700.3,0.011]
[1755916913017,0.466,4702.3,4700.9,0.19725744]
[1755916913215,0.466,4702.3,4701.0,0.19725744]
[1755916913216,2.12676109,4702.0,4701.0,0.19725744]
[1755916913415,0.466,4701.9,4701.1,0.19725744]
[1755916913615,0.466,4701.9,4700.3,0.011]
[1755916913616,4.284,4701.8,4701.2,0.19714254]
[1755916913939,2.59289688,4701.7,4700.3,0.011]
[1755916914148,2.59289688,4701.7,4700.9,0.19714856]
[1755916914149,3.466,4701.7,4700.9,0.19714856]
[1755916914449,2.12698552,4701.5,4700.3,0.011]
[1755916914631,4.635,4701.4,4700.3,0.011]
[1755916914842,2.12725222,4700.9,4700.3,0.011]
[1755916915011,9.41125222,4700.9,4700.3,0.011]
[1755916915211,10.53725222,4700.9,4700.3,0.011]
[1755916916443,11.96725222,4700.9,4700.3,0.011]
[1755916917469,7.68325222,4700.9,4700.3,0.011]
[1755916917632,12.07956863,4700.9,4700.3,0.011]
[1755916918037,2.21231641,4700.9,4700.3,0.011]
[1755916918375,9.03231641,4700.9,4700.3,0.011]
[1755916918559,6.03231641,4700.9,4700.3,0.011]
[1755916918862,9.49831641,4700.9,4700.3,0.011]
[1755916919244,10.15831641,4700.9,4700.3,0.011]
[1755916919654,9.49831641,4700.9,4700.3,0.011]
[1755916920235,9.03231641,4700.9,4700.3,0.011]
[1755916920431,9.03131641,4700.9,4700.3,0.011]
[1755916920937,9.49731641,4700.9,4700.3,0.011]
[1755916922030,12.28456863,4700.9,4700.3,0.011]
[1755916922230,2.78747851,4700.4,4700.3,0.011]
[1755916922462,10.07347851,4700.4,4700.3,0.011]
[1755916922765,10.07347851,4700.4,4699.8,0.032]
[1755916922766,2.78770484,4699.9,4699.8,0.032]
[1755916922932,11.70870484,4699.9,4699.8,0.032]
[1755916923134,12.28110484,4699.9,4699.8,0.032]
[1755916925275,7.52910484,4699.9,4699.8,0.032]
[1755916925482,12.28110484,4699.9,4699.8,0.032]
[1755916928385,6.0274,4699.9,4699.8,0.032]
[1755916928680,9.0274,4699.9,4699.8,0.032]
[1755916929249,9.0264,4699.9,4699.8,0.032]
[1755916930160,1.7414,4699.9,4699.8,0.032]
[1755916930484,1.7414,4699.9,4699.8,0.4955]
[1755916930485,6.0274,4699.9,4699.8,0.4955]
[1755916933058,6.0274,4699.9,4699.8,0.032]
[1755916933263,6.0274,4699.9,4699.8,0.02]
[1755916934256,6.0264,4699.9,4699.8,0.02]
[1755916935991,6.0264,4699.9,4699.8,0.21748292]
[1755916936856,6.4924,4699.9,4699.8,0.21748292]
[1755916937255,9.0264,4699.9,4699.8,0.21748292]
[1755916937652,9.0264,4699.9,4699.8,1.38774492]
[1755916937884,6.0264,4699.9,4699.8,1.38774492]
[1755916939709,10.1551,4699.9,4699.8,1.38774492]
[1755916939917,9.0234,4699.9,4699.8,1.38774492]
[1755916940097,11.15110484,4699.9,4699.8,1.38774492]
[1755916940408,9.0234,4699.9,4699.8,1.38774492]
[1755916942513,9.0234,4699.9,4699.8,1.38915864]
[1755916942721,6.0234,4699.9,4699.8,1.38915864]
[1755916943082,6.9824,4699.9,4699.8,1.38915864]
[1755916943285,6.876,4699.9,4699.8,1.38915864]
[1755916943918,1.635,4699.9,4699.8,1.38915864]
[1755916944214,5.916,4699.9,4699.8,1.38915864]
[1755916944983,1.636,4699.9,4699.8,1.69445864]
[1755916945184,1.636,4699.9,4699.8,2.14355864]
[1755916945617,5.916,4699.9,4699.8,2.14373163]
[1755916946025,5.916,4699.9,4699.8,1.38933163]
[1755916946322,4.916,4699.9,4699.8,1.38933163]
[1755916946925,0.636,4699.9,4699.8,1.38933163]
[1755916947103,4.916,4699.9,4699.8,1.38933163]
[1755916947302,0.636,4699.9,4699.8,1.38933163]
[1755916947513,4.915,4699.9,4699.8,1.38933163]
[1755916948323,0.636,4699.9,4699.8,2.14373163]
[1755916948513,4.915,4699.9,4699.8,2.14373163]
[1755916951117,0.636,4699.9,4699.8,2.14373163]
[1755916951320,4.914,4699.9,4699.8,2.14373163]
[1755916951614,0.636,4699.9,4699.8,2.14374251]
[1755916951817,4.913,4699.9,4699.8,2.14774251]
[1755916952023,4.913,4699.9,4699.8,2.14775593]
[1755916952529,4.277,4699.9,4699.8,2.14775593]
[1755916952728,1.636,4700.1,4699.8,2.14775593]
[1755916952729,4.276,4700.0,4699.8,2.14775593]
[1755916952935,4.276,4700.0,4699.9,0.64819393]
[1755916953138,4.276,4700.0,4699.9,0.95349393]
[1755916953436,4.3824,4700.0,4699.9,0.95349393]
[1755916954348,4.3824,4700.0,4699.9,0.19909393]
[1755916954707,4.6814,4700.0,4699.9,0.19909393]
[1755916954907,5.1501,4700.0,4699.9,0.19909393]
[1755916955220,10.93775957,4700.0,4699.9,0.19909393]
[1755916956420,3.4054,4700.0,4699.9,0.19909393]
[1755916956622,7.6794,4700.0,4699.9,0.19909393]
[1755916956832,9.80705957,4700.0,4699.9,0.19909393]
[1755916957227,7.6794,4700.0,4699.9,0.19909393]
[1755916957428,3.1064,4700.0,4699.9,0.19909393]
[1755916957634,7.3804,4700.0,4699.9,0.19909393]
[1755916957841,8.1481,4700.0,4699.9,0.19909393]
[1755916958255,7.3804,4700.0,4699.9,0.19909393]
[1755916958558,7.3794,4700.0,4699.9,0.19909393]
[1755916959759,10.93475957,4700.0,4699.9,0.19909393]
[1755916959930,8.8061,4700.0,4699.9,0.19909393]
[1755916960131,1.636,4700.1,4699.9,0.19909393]
[1755916960331,4.3784,4700.0,4699.8,1.194262]
[1755916960648,4.3784,4700.0,4699.9,0.19934326]
[1755916961460,4.6774,4700.0,4699.9,0.19934326]
[1755916962134,4.3784,4700.0,4699.9,0.19934326]
[1755916962452,4.3774,4700.0,4699.9,0.19934326]
[1755916963638,4.3774,4700.0,4699.9,0.50464326]
[1755916964447,4.3764,4700.0,4699.9,0.95374326]
[1755916966032,4.3754,4700.0,4699.9,0.95374326]
[1755916967440,0.1064,4700.0,4699.9,0.95374326]
[1755916968033,4.3744,4700.0,4699.9,0.95374326]
[1755916968743,4.3754,4700.0,4699.9,0.95374326]
[1755916969267,4.269,4700.0,4699.9,0.95374326]
[1755916969681,4.269,4700.0,4699.9,0.7544]
[1755916969858,4.269,4700.0,4699.9,0.95356206]
[1755916969859,0.001,4700.0,4699.9,0.95356206]
[1755916970668,4.3734,4700.0,4699.9,0.50440417]
[1755916971454,4.3734,4700.0,4699.9,0.95870417]
[1755916972060,4.267,4700.0,4699.9,0.95870417]
[1755916972939,0.001,4700.0,4699.9,0.95870417]
[1755916973142,0.001,4700.0,4699.9,0.61080417]
[1755916973347,4.265,4700.0,4699.9,0.19910417]
[1755916974172,4.265,4700.0,4699.9,0.94020417]
[1755916974783,4.265,4700.0,4699.9,0.19910417]
[1755916976179,0.001,4700.0,4699.9,0.94020417]
[1755916976344,0.006,4700.0,4699.9,0.94020417]
[1755916976864,0.006,4700.0,4699.9,0.7411]
[1755916977266,0.006,4700.0,4699.9,0.7611]
[1755916981689,0.006,4700.0,4699.9,1.44237704]
[1755916981996,0.001,4700.5,4699.9,1.44237704]
[1755916981997,0.001,4700.5,4700.0,0.66]
[1755916982197,0.001,4700.8,4700.5,0.66]
[1755916982494,0.001,4700.8,4700.7,0.9468]
[1755916982695,0.001,4700.8,4700.7,3.9468]
[1755916982898,0.001,4700.8,4700.7,4.4011]
[1755916983388,0.001,4700.8,4700.7,4.5075]
[1755916983591,0.1064,4702.0,4700.7,4.5075]
[1755916983592,0.1064,4702.0,4700.7,1.5075]
[1755916983896,0.02,4702.8,4701.3,3.66]
[1755916984183,0.4284,4702.5,4701.2,0.1064]
[1755916984384,0.1064,4701.7,4701.0,0.1064]
[1755916984604,0.1064,4701.1,4699.9,0.02]
[1755916984752,0.4284,4701.0,4699.9,0.02]
[1755916984947,0.2923,4700.0,4699.9,0.02]
[1755916985460,0.7207,4700.0,4699.9,0.02]
[1755916991494,4.252,4700.0,4699.9,0.02]
[1755916991701,4.3584,4700.0,4699.9,0.02]
[1755916991869,4.3584,4700.0,4699.9,0.3068]
[1755916992271,0.1064,4700.0,4699.9,0.3068]
[1755916992476,0.1064,4700.0,4699.9,0.7611]
[1755916992703,0.1064,4700.0,4699.9,0.3068]
[1755916993068,0.3754,4700.0,4699.9,0.02]
[1755916993399,0.1064,4700.0,4699.9,0.02]
[1755916993564,4.3574,4700.0,4699.9,0.02]
[1755916995002,4.251,4700.0,4699.9,0.7611]
[1755916995185,4.3574,4700.0,4699.9,0.7611]
[1755916995386,4.251,4700.0,4699.9,0.7611]
[1755916995597,0.1064,4700.2,4699.9,0.02]
[1755916996151,0.002,4701.0,4700.1,0.2868]
[1755916996421,0.002,4701.0,4700.3,0.66]
[1755916996630,0.002,4701.0,4700.9,0.3932]
[1755916996978,0.002,4701.0,4700.9,0.2868]
[1755916997214,0.002,4701.0,4700.9,0.7411]
[1755916997612,0.002,4701.0,4700.2,2.0903]
[1755916997813,0.002,4701.0,4700.9,0.2868]
[1755916998525,0.002,4701.0,4700.9,0.7473]
[1755917002829,0.002,4701.0,4700.4,0.4605]
[1755917002989,0.002,4701.0,4700.5,0.02127433]
[1755917003185,0.002,4701.0,4700.2,1.636]
[1755917003586,0.002,4701.0,4700.9,0.2986]
[1755917004521,0.002,4701.0,4700.9,0.7591]
[1755917005499,0.002,4701.3,4701.0,0.66]
[1755917005705,0.002,4701.3,4701.2,0.9586]
[1755917005931,0.002,4701.3,4701.2,3.97987116]
[1755917006241,0.002,4701.5,4701.2,4.44037116]
[1755917006440,0.022,4701.8,4701.2,3.97987116]
[1755917006588,0.02,4703.8,4701.4,3.66]
[1755917006789,0.02,4703.8,4701.3,30.4605]
[1755917006790,0.02,4703.8,4702.7,0.9586]
[1755917007137,0.02,4703.8,4702.7,10.13905468]
[1755917007429,0.02,4703.8,4702.8,3.66]
[1755917007612,0.02,4703.8,4702.9,0.19805468]
[1755917007821,0.02,4703.8,4703.6,0.1064]
[1755917008134,0.02,4703.8,4703.7,0.19805468]
[1755917008739,0.02,4703.8,4703.7,0.51791453]
[1755917009040,0.02,4703.8,4703.7,0.97841453]
[1755917009226,0.02,4703.8,4703.7,1.61715468]
[1755917009528,0.02,4703.8,4703.7,1.72355468]
[1755917009900,0.02,4703.8,4703.7,8.98281453]
[1755917010115,0.02,4703.8,4703.7,8.96155468]
[1755917010833,0.02,4703.8,4703.7,4.72355468]
[1755917010995,0.02,4703.8,4703.7,8.96055468]
[1755917011899,0.02,4703.8,4703.7,8.95955468]
[1755917012336,0.02,4703.8,4703.7,8.95855468]
[1755917012837,0.02,4703.8,4703.7,0.19805468]
[1755917013040,0.7534,4703.8,4703.7,0.19805468]
[1755917014227,0.02,4703.8,4703.7,0.19685944]
[1755917014796,0.02,4703.8,4703.7,0.19677621]
[1755917015729,0.02,4703.8,4703.7,1.61587621]
[1755917017011,0.02,4703.8,4703.7,1.15537621]
[1755917018231,0.02,4703.8,4703.7,0.19677621]
[1755917018820,0.02,4703.8,4703.7,0.85677621]
[1755917019021,0.02,4703.8,4703.7,1.17663606]
[1755917019330,0.02,4703.8,4703.7,1.63713606]
[1755917019712,0.021,4703.8,4703.7,1.61587621]
[1755917020597,0.02,4703.8,4703.7,1.61587621]
[1755917020797,0.02,4703.8,4703.7,4.15537621]
[1755917020998,0.02,4703.8,4703.7,8.84287621]
[1755917021438,0.02,4704.8,4703.8,31.92812808]
[1755917021638,0.02,4704.8,4704.0,0.66]
[1755917021843,0.02,4704.8,4704.7,0.9586]
[1755917022133,0.02,4704.8,4704.7,7.47587621]
[1755917022335,0.4417,4706.5,4704.8,3.66]
[1755917022521,0.4417,4706.5,4705.0,0.66]
[1755917022721,0.4417,4706.5,4705.9,0.1064]
[1755917022920,0.4417,4706.5,4706.0,0.19677621]
[1755917023145,0.4417,4707.1,4705.7,4.225]
[1755917023314,0.4417,4707.1,4705.8,0.21818027]
[1755917023518,0.4417,4707.1,4705.9,0.1969299]
[1755917023716,0.4417,4707.1,4705.7,4.225]
[1755917023717,0.4417,4707.1,4706.0,0.21817936]
[1755917023933,0.4417,4707.1,4706.1,0.1969299]
[1755917024135,1.634,4707.7,4706.2,0.19695918]
[1755917024136,0.4417,4706.7,4706.2,0.19695918]
[1755917024337,0.4417,4706.7,4706.3,0.19695918]
[1755917024518,0.4417,4706.7,4706.4,0.21820684]
[1755917024719,1.634,4707.7,4706.5,0.21820639]
[1755917024720,0.4417,4707.3,4706.5,0.21820639]
[1755917024916,0.4417,4707.3,4706.6,0.19695918]
[1755917025121,0.02,4707.8,4705.7,0.4605]
[1755917025122,0.02,4707.8,4706.7,5.07895918]
[1755917025324,0.4417,4707.4,4706.7,4.41895918]
[1755917025714,0.4417,4707.4,4706.7,0.19695918]
[1755917026044,0.4417,4707.4,4706.7,4.41895918]
[1755917026365,0.4417,4707.4,4706.7,4.43920548]
[1755917026506,0.4417,4707.4,4706.7,4.41795918]
[1755917026701,0.02,4707.8,4706.7,5.07795918]
[1755917026951,0.021,4707.8,4706.7,5.07795918]
[1755917027150,0.4417,4707.5,4706.7,4.41702903]
[1755917027908,0.4417,4707.5,4706.7,5.07702903]
[1755917029623,0.4417,4707.5,4706.7,0.19702903]
[1755917029822,0.4417,4707.5,4706.7,4.41602903]
[1755917030840,0.021,4707.8,4706.7,5.38162903]
[1755917031632,0.021,4707.8,4706.7,0.85702903]
[1755917031834,0.438,4707.7,4706.7,4.41202903]
[1755917032279,0.438,4707.7,4706.7,4.215]
[1755917032435,0.3175,4706.8,4706.7,0.19725354]
[1755917032636,0.3175,4706.8,4706.7,4.41225354]
[1755917032836,0.02,4706.8,4706.7,0.19725354]
[1755917033037,0.3175,4706.8,4706.7,0.19725354]
[1755917033223,0.02,4706.8,4706.7,4.41125354]
[1755917034451,0.02,4706.8,4706.7,0.19725354]
[1755917034657,0.02,4706.8,4706.7,4.41025354]
[1755917035848,0.02,4706.8,4706.7,4.40925354]
[1755917036218,0.02,4706.8,4706.7,5.37485354]
[1755917036417,0.02,4706.8,4706.7,4.51565354]
[1755917036653,0.02,4706.8,4706.7,0.30365354]
[1755917036830,0.3175,4706.8,4706.7,4.51365354]
[1755917037031,0.3185,4706.8,4706.7,0.30365354]
[1755917037231,0.3185,4706.8,4706.7,4.40725354]
[1755917037552,0.3185,4706.8,4706.7,0.19725354]
[1755917037755,0.3185,4706.8,4706.7,4.40725354]
[1755917039014,0.021,4706.8,4706.7,4.40725354]
[1755917039450,0.021,4706.8,4706.7,5.37285354]
[1755917039651,0.021,4706.8,4706.7,5.47925354]
[1755917040158,0.021,4706.8,4706.7,5.17365354]
[1755917040357,0.3185,4706.8,4706.7,0.19725354]
[1755917040518,0.3185,4706.8,4706.7,4.40425354]
[1755917041055,0.3185,4706.8,4706.7,0.19798385]
[1755917041056,0.8629,4706.8,4706.7,0.19798385]
[1755917041227,0.4249,4706.8,4706.7,0.19798385]
[1755917041418,0.4249,4706.8,4706.7,4.40398385]
[1755917042068,0.1274,4706.8,4706.7,4.40398385]
[1755917042359,0.021,4706.8,4706.7,4.40398385]
[1755917043118,0.021,4706.8,4706.7,0.19798385]
[1755917043324,0.2754,4706.8,4706.7,0.19798385]
[1755917043621,0.2754,4706.8,4706.7,4.81398385]
[1755917043622,0.021,4706.8,4706.7,4.81398385]
[1755917044033,0.021,4706.8,4706.7,5.47398385]
[1755917044446,0.021,4706.8,4706.7,5.93748385]
[1755917045868,0.021,4706.8,4706.7,0.30438385]
[1755917046023,0.2754,4706.8,4706.7,4.50738385]
[1755917046219,0.7115,4706.8,4706.7,0.19798385]
[1755917046455,0.8179,4706.8,4706.7,0.19798385]
[1755917048264,0.7115,4706.8,4706.7,0.19798385]
[1755917048429,0.7134,4706.8,4706.7,0.19798385]
[1755917048826,0.2754,4706.8,4706.7,0.19798385]
[1755917049525,0.2754,4706.8,4706.7,0.19886332]
[1755917049724,0.7134,4706.8,4706.7,0.19886332]
[1755917050720,2.8379857,4706.8,4706.7,0.19886332]
[1755917050920,6.4979857,4706.8,4706.7,0.12126332]
[1755917051129,0.7134,4706.8,4706.7,0.12126332]
[1755917051568,0.7134,4706.8,4704.6,5.55578456]
[1755917051731,2.071,4706.7,4704.6,5.55578456]
[1755917051937,1.633,4706.7,4704.6,6.01928456]
[1755917052263,0.438,4706.6,4704.7,4.196]
[1755917052443,0.438,4706.6,4704.8,0.02125488]
[1755917052633,0.021,4706.8,4704.8,0.02125488]
[1755917052634,0.021,4706.8,4704.8,1.1235]
[1755917053035,0.021,4706.8,4705.0,0.66]
[1755917053253,0.021,4706.8,4705.1,0.02125353]
[1755917053446,0.021,4706.8,4705.2,0.66]
[1755917053658,0.021,4706.8,4705.4,0.66]
[1755917053975,0.021,4706.8,4705.6,0.66]
[1755917054471,0.021,4706.8,4706.7,0.9656]
[1755917054654,0.021,4706.8,4706.7,6.7926]
[1755917054972,0.021,4706.8,4706.7,10.2561]
[1755917055267,0.02,4706.8,4706.7,10.2561]
[1755917058275,0.02,4706.8,4706.7,10.3625]
[1755917058685,0.02,4706.8,4706.7,6.1685]
[1755917058979,0.02,4706.8,4706.7,10.3595]
[1755917060883,0.02,4707.8,4706.8,0.66]